[Event "*** Titled Tuesday 3|2 Blitz"]
[Site "Chess.com"]
[Date "2016.05.03"]
[Round "2"]
[White "Mischuk_D"]
[Black "HansCoolNiemann"]
[Result "1-0"]
[WhiteElo "2471"]
[BlackElo "2254"]
[TimeControl "180+2"]
[EndTime "11:18:44 PDT"]
[Termination "Mischuk_D won by checkmate"]

1. e4 {[%clk 0:03:01.9]} 1... e6 {[%clk 0:02:59.3]} 2. d4 {[%clk 0:03:02.5]}
2... d5 {[%clk 0:02:59.8]} 3. Bd3 {[%clk 0:03:03.6]} 3... c5 {[%clk 0:02:53]} 4.
exd5 {[%clk 0:03:02.7]} 4... Qxd5 {[%clk 0:02:51.7]} 5. Nc3 {[%clk 0:03:03.7]}
5... Qxd4 {[%clk 0:02:35.9]} 6. Nb5 {[%clk 0:03:04.1]} 6... Qd8 {[%clk
0:02:34.5]} 7. Bf4 {[%clk 0:03:05.3]} 7... Na6 {[%clk 0:02:34.2]} 8. Qe2 {[%clk
0:03:06.4]} 8... Qa5+ {[%clk 0:02:00.9]} 9. c3 {[%clk 0:03:03.9]} 9... Bd7
{[%clk 0:01:52.8]} 10. Nd6+ {[%clk 0:03:04]} 10... Bxd6 {[%clk 0:01:48.8]} 11.
Bxd6 {[%clk 0:03:05.9]} 11... Qb6 {[%clk 0:01:49.1]} 12. Bg3 {[%clk 0:03:05.8]}
12... Nf6 {[%clk 0:01:47.9]} 13. O-O-O {[%clk 0:03:04.1]} 13... Rc8 {[%clk
0:01:45.5]} 14. Nf3 {[%clk 0:03:04.7]} 14... Ba4 {[%clk 0:01:00.1]} 15. Rd2
{[%clk 0:03:02.3]} 15... O-O {[%clk 0:00:53.8]} 16. Ne5 {[%clk 0:03:02.8]} 16...
Rfd8 {[%clk 0:00:53.4]} 17. Bh4 {[%clk 0:03:03.6]} 17... Rd5 {[%clk 0:00:44.9]}
18. Bxf6 {[%clk 0:03:02.7]} 18... gxf6 {[%clk 0:00:43.5]} 19. Qg4+ {[%clk
0:03:02.3]} 19... Kf8 {[%clk 0:00:41]} 20. Nc4 {[%clk 0:02:57.4]} 20... Qd8
{[%clk 0:00:38]} 21. Bxh7 {[%clk 0:02:57.4]} 21... b5 {[%clk 0:00:32.4]} 22.
Rxd5 {[%clk 0:02:55.6]} 22... exd5 {[%clk 0:00:28.7]} 23. Re1 {[%clk 0:02:52.9]}
23... Qe7 {[%clk 0:00:07.3]} 24. Qg8# {[%clk 0:02:43.3]} 1-0

[Event "*** Titled Tuesday 3|2 Blitz"]
[Site "Chess.com"]
[Date "2016.05.03"]
[Round "2"]
[White "crisfoisor"]
[Black "charlescandycampbell"]
[Result "1-0"]
[WhiteElo "2146"]
[BlackElo "2045"]
[TimeControl "180+2"]
[EndTime "11:19:03 PDT"]
[Termination "crisfoisor won by resignation"]

1. d4 {[%clk 0:02:59.3]} 1... Nf6 {[%clk 0:03:00.2]} 2. c4 {[%clk 0:02:58.9]}
2... e6 {[%clk 0:03:01.5]} 3. Nc3 {[%clk 0:02:59.2]} 3... Bb4 {[%clk 0:03:02.4]}
4. Qc2 {[%clk 0:03:00.1]} 4... O-O {[%clk 0:03:00.1]} 5. Nf3 {[%clk 0:02:58.5]}
5... h6 {[%clk 0:02:58.2]} 6. e4 {[%clk 0:02:56.1]} 6... d5 {[%clk 0:02:56.6]}
7. e5 {[%clk 0:02:54.3]} 7... Ne4 {[%clk 0:02:57.4]} 8. Bd3 {[%clk 0:02:53.7]}
8... c5 {[%clk 0:02:37.1]} 9. Bxe4 {[%clk 0:02:38.2]} 9... dxe4 {[%clk
0:02:36.9]} 10. Qxe4 {[%clk 0:02:38.5]} 10... cxd4 {[%clk 0:02:33.4]} 11. Nxd4
{[%clk 0:02:29.2]} 11... Qa5 {[%clk 0:02:24.2]} 12. Bd2 {[%clk 0:02:27.1]} 12...
Na6 {[%clk 0:02:13.7]} 13. O-O {[%clk 0:02:22.3]} 13... Nc5 {[%clk 0:02:14.7]}
14. Qc2 {[%clk 0:02:22.7]} 14... Rd8 {[%clk 0:02:11.7]} 15. Nf3 {[%clk
0:02:10.9]} 15... Nd3 {[%clk 0:02:03.8]} 16. a3 {[%clk 0:02:10.1]} 16... Bxc3
{[%clk 0:02:00.5]} 17. Bxc3 {[%clk 0:02:10.1]} 17... Qc7 {[%clk 0:01:59.2]} 18.
Rad1 {[%clk 0:02:01.5]} 18... Nc5 {[%clk 0:01:58.1]} 19. b4 {[%clk 0:02:00.9]}
19... Na6 {[%clk 0:01:42.5]} 20. Rxd8+ {[%clk 0:01:54.4]} 20... Qxd8 {[%clk
0:01:43.3]} 21. Rd1 {[%clk 0:01:54.8]} 21... Qc7 {[%clk 0:01:43.9]} 22. Qd3
{[%clk 0:01:54.7]} 22... Kf8 {[%clk 0:01:38.1]} 23. c5 {[%clk 0:01:39.6]} 23...
b6 {[%clk 0:01:30]} 24. c6 {[%clk 0:01:39]} 24... Qxc6 {[%clk 0:01:26.2]} 25. b5
{[%clk 0:01:34.2]} 1-0

[Event "*** Titled Tuesday 3|2 Blitz"]
[Site "Chess.com"]
[Date "2016.05.03"]
[Round "2"]
[White "hypert"]
[Black "Quiet_Desperation"]
[Result "1-0"]
[WhiteElo "2344"]
[BlackElo "2291"]
[TimeControl "180+2"]
[EndTime "11:19:15 PDT"]
[Termination "hypert won by resignation"]

1. e4 {[%clk 0:03:01.9]} 1... Nc6 {[%clk 0:02:59.1]} 2. Nf3 {[%clk 0:03:02.3]}
2... d6 {[%clk 0:02:59]} 3. d4 {[%clk 0:03:02]} 3... Nf6 {[%clk 0:03:00.2]} 4.
Nc3 {[%clk 0:03:02.1]} 4... d5 {[%clk 0:03:00.2]} 5. e5 {[%clk 0:03:01.8]} 5...
Ne4 {[%clk 0:03:00.5]} 6. Ne2 {[%clk 0:03:02.7]} 6... Bg4 {[%clk 0:02:43.8]} 7.
h3 {[%clk 0:02:59.5]} 7... Bh5 {[%clk 0:02:44.6]} 8. g4 {[%clk 0:02:51.6]} 8...
Bg6 {[%clk 0:02:45.6]} 9. Nf4 {[%clk 0:02:52.6]} 9... e6 {[%clk 0:02:40.8]} 10.
h4 {[%clk 0:02:52.4]} 10... h6 {[%clk 0:02:27.3]} 11. Nxg6 {[%clk 0:02:51.1]}
11... fxg6 {[%clk 0:02:28.7]} 12. Be3 {[%clk 0:02:36.2]} 12... Be7 {[%clk
0:02:20.4]} 13. h5 {[%clk 0:02:35.6]} 13... g5 {[%clk 0:02:13.7]} 14. c3 {[%clk
0:02:35.1]} 14... O-O {[%clk 0:02:11.3]} 15. Bd3 {[%clk 0:02:34.5]} 15... Qe8
{[%clk 0:02:06.4]} 16. Nd2 {[%clk 0:02:26.4]} 16... Nxd2 {[%clk 0:01:39.8]} 17.
Qxd2 {[%clk 0:02:28.3]} 17... Na5 {[%clk 0:01:38.9]} 18. b3 {[%clk 0:02:18.9]}
18... b6 {[%clk 0:01:38.3]} 19. Bg6 {[%clk 0:02:13.6]} 19... Qd7 {[%clk
0:01:32.9]} 20. Bb1 {[%clk 0:02:09.7]} 20... Rf4 {[%clk 0:00:49.8]} 21. Bxf4
{[%clk 0:01:56]} 21... gxf4 {[%clk 0:00:51]} 22. Qd3 {[%clk 0:01:53.1]} 22...
Kf8 {[%clk 0:00:50]} 23. Qh7 {[%clk 0:01:51.6]} 23... Ke8 {[%clk 0:00:50.7]} 24.
Bg6+ {[%clk 0:01:46.2]} 24... Kd8 {[%clk 0:00:50.3]} 25. Qg8+ {[%clk 0:01:46.7]}
1-0

[Event "*** Titled Tuesday 3|2 Blitz"]
[Site "Chess.com"]
[Date "2016.05.03"]
[Round "2"]
[White "spectralsoul"]
[Black "Yaacovn"]
[Result "0-1"]
[WhiteElo "2545"]
[BlackElo "2559"]
[TimeControl "180+2"]
[EndTime "11:19:19 PDT"]
[Termination "Yaacovn won by resignation"]

1. e4 {[%clk 0:03:01.9]} 1... c6 {[%clk 0:03:01.2]} 2. d3 {[%clk 0:03:00]} 2...
d5 {[%clk 0:03:03.1]} 3. Nd2 {[%clk 0:03:01.9]} 3... g6 {[%clk 0:03:04.4]} 4.
Ngf3 {[%clk 0:03:00.9]} 4... Bg7 {[%clk 0:03:05.9]} 5. g3 {[%clk 0:03:02.1]}
5... Bg4 {[%clk 0:03:07]} 6. h3 {[%clk 0:03:01.8]} 6... Bxf3 {[%clk 0:03:08.1]}
7. Qxf3 {[%clk 0:03:03.7]} 7... Nf6 {[%clk 0:03:09.5]} 8. Bg2 {[%clk 0:03:05.2]}
8... O-O {[%clk 0:03:11]} 9. O-O {[%clk 0:03:06.8]} 9... e6 {[%clk 0:03:12.6]}
10. Qe2 {[%clk 0:03:08.1]} 10... a5 {[%clk 0:03:12.7]} 11. a4 {[%clk 0:03:00.5]}
11... Nfd7 {[%clk 0:03:10.3]} 12. c3 {[%clk 0:02:59]} 12... f5 {[%clk
0:03:05.5]} 13. exd5 {[%clk 0:02:45]} 13... exd5 {[%clk 0:03:06.3]} 14. Nf3
{[%clk 0:02:43.8]} 14... Nc5 {[%clk 0:03:03.7]} 15. Bg5 {[%clk 0:02:38.6]} 15...
Bf6 {[%clk 0:02:45.5]} 16. Bh6 {[%clk 0:02:26.6]} 16... Re8 {[%clk 0:02:45.6]}
17. Qc2 {[%clk 0:02:28.2]} 17... Nbd7 {[%clk 0:02:44.6]} 18. Rae1 {[%clk
0:02:25.7]} 18... Qb6 {[%clk 0:02:44]} 19. h4 {[%clk 0:02:06]} 19... Qb3 {[%clk
0:02:42.7]} 20. Qxb3 {[%clk 0:02:05.9]} 20... Nxb3 {[%clk 0:02:44.6]} 21. d4
{[%clk 0:02:06.1]} 21... Nb6 {[%clk 0:02:42.4]} 22. Ne5 {[%clk 0:01:53.7]} 22...
Nxa4 {[%clk 0:02:38]} 23. Re2 {[%clk 0:01:49.1]} 23... Bxe5 {[%clk 0:02:21.3]}
24. dxe5 {[%clk 0:01:49]} 24... Nbc5 {[%clk 0:02:17.4]} 25. Rd1 {[%clk
0:01:45.1]} 25... Ne4 {[%clk 0:02:11.4]} 26. Kh2 {[%clk 0:01:40]} 26... Nexc3
{[%clk 0:02:06.8]} 27. bxc3 {[%clk 0:01:41.9]} 27... Nxc3 {[%clk 0:02:08.2]} 28.
Red2 {[%clk 0:01:43.2]} 28... Nxd1 {[%clk 0:02:08.7]} 29. Rxd1 {[%clk
0:01:45.1]} 29... Rxe5 {[%clk 0:02:09]} 30. Bf1 {[%clk 0:01:40.2]} 30... a4
{[%clk 0:02:07.7]} 31. Ra1 {[%clk 0:01:40]} 31... a3 {[%clk 0:02:07.4]} 32. Bd2
{[%clk 0:01:39.8]} 32... a2 {[%clk 0:02:05.2]} 33. Bc3 {[%clk 0:01:41]} 33...
Re4 {[%clk 0:02:04.3]} 34. Bd3 {[%clk 0:01:42]} 34... c5 {[%clk 0:02:01.1]} 35.
Bxe4 {[%clk 0:01:37.1]} 35... fxe4 {[%clk 0:02:03]} 36. Kg2 {[%clk 0:01:35.1]}
36... d4 {[%clk 0:02:04]} 37. Bb2 {[%clk 0:01:36.7]} 37... b5 {[%clk 0:02:05.1]}
38. Kf1 {[%clk 0:01:37.7]} 38... Kf7 {[%clk 0:02:05.8]} 39. Ke2 {[%clk
0:01:39.2]} 39... Ke6 {[%clk 0:02:07.3]} 40. Kd2 {[%clk 0:01:40.8]} 40... Kd5
{[%clk 0:02:08.8]} 41. Kc2 {[%clk 0:01:42.4]} 41... c4 {[%clk 0:02:10.3]} 42.
Rd1 {[%clk 0:01:40.1]} 42... d3+ {[%clk 0:02:08.3]} 43. Kc3 {[%clk 0:01:41.7]}
43... Kc5 {[%clk 0:02:03.8]} 44. Kd2 {[%clk 0:01:40.6]} 44... b4 {[%clk
0:02:03.5]} 0-1

[Event "*** Titled Tuesday 3|2 Blitz"]
[Site "Chess.com"]
[Date "2016.05.03"]
[Round "2"]
[White "AvitalBor"]
[Black "motivated_bishop"]
[Result "1-0"]
[WhiteElo "2337"]
[BlackElo "2272"]
[TimeControl "180+2"]
[EndTime "11:19:33 PDT"]
[Termination "AvitalBor won by checkmate"]

1. Nf3 {[%clk 0:02:57.5]} 1... Nf6 {[%clk 0:02:59.6]} 2. c4 {[%clk 0:02:58]}
2... c5 {[%clk 0:02:57]} 3. d4 {[%clk 0:02:58.1]} 3... cxd4 {[%clk 0:02:55.8]}
4. Nxd4 {[%clk 0:03:00]} 4... g6 {[%clk 0:02:55.3]} 5. Nc3 {[%clk 0:02:59.5]}
5... Bg7 {[%clk 0:02:56]} 6. e4 {[%clk 0:03:01.1]} 6... d6 {[%clk 0:02:57]} 7.
Be2 {[%clk 0:03:01]} 7... O-O {[%clk 0:02:57.9]} 8. Be3 {[%clk 0:03:02.4]} 8...
a6 {[%clk 0:02:52.4]} 9. O-O {[%clk 0:03:02.9]} 9... Nbd7 {[%clk 0:02:49.4]} 10.
f3 {[%clk 0:03:03.2]} 10... b6 {[%clk 0:02:46.2]} 11. Nc6 {[%clk 0:02:38.4]}
11... Qe8 {[%clk 0:02:45.9]} 12. Nd5 {[%clk 0:02:39.8]} 12... Nxd5 {[%clk
0:02:35.8]} 13. Qxd5 {[%clk 0:02:41.7]} 13... Bb7 {[%clk 0:01:36.9]} 14. Nxe7+
{[%clk 0:02:40.6]} 14... Qxe7 {[%clk 0:01:37.9]} 15. Qxb7 {[%clk 0:02:41.9]}
15... Rfb8 {[%clk 0:01:31]} 16. Qd5 {[%clk 0:02:42.3]} 16... Bxb2 {[%clk
0:01:31.6]} 17. Rad1 {[%clk 0:02:36.9]} 17... Ba3 {[%clk 0:01:28.9]} 18. Bg5
{[%clk 0:02:34.4]} 18... Qe6 {[%clk 0:01:26.8]} 19. f4 {[%clk 0:02:27.4]} 19...
Re8 {[%clk 0:01:11.8]} 20. Qxe6 {[%clk 0:02:27.7]} 20... fxe6 {[%clk 0:01:06.5]}
21. e5 {[%clk 0:02:28.8]} 21... Rac8 {[%clk 0:00:45.9]} 22. exd6 {[%clk
0:02:26.7]} 22... Rc6 {[%clk 0:00:43.9]} 23. Kh1 {[%clk 0:02:22.8]} 23... Rec8
{[%clk 0:00:20]} 24. Bg4 {[%clk 0:02:16.4]} 24... Kf7 {[%clk 0:00:20.7]} 25.
Rfe1 {[%clk 0:02:15.6]} 25... Rxd6 {[%clk 0:00:13.7]} 26. Rxd6 {[%clk
0:02:15.1]} 26... Bxd6 {[%clk 0:00:15.6]} 27. Bxe6+ {[%clk 0:02:15.8]} 27... Ke8
{[%clk 0:00:17.5]} 28. Bd5+ {[%clk 0:02:12.5]} 28... Kf8 {[%clk 0:00:17.1]} 29.
Bh6# {[%clk 0:02:13.3]} 1-0

[Event "*** Titled Tuesday 3|2 Blitz"]
[Site "Chess.com"]
[Date "2016.05.03"]
[Round "2"]
[White "rookoco"]
[Black "Lector118"]
[Result "1-0"]
[WhiteElo "2396"]
[BlackElo "2298"]
[TimeControl "180+2"]
[EndTime "11:19:34 PDT"]
[Termination "rookoco won by resignation"]

1. d4 {[%clk 0:03:01.9]} 1... Nf6 {[%clk 0:03:00.6]} 2. Bg5 {[%clk 0:03:01.8]}
2... c5 {[%clk 0:03:01.1]} 3. d5 {[%clk 0:03:02.8]} 3... Ne4 {[%clk 0:03:01.7]}
4. Bc1 {[%clk 0:03:01.4]} 4... d6 {[%clk 0:02:55.3]} 5. f3 {[%clk 0:03:02]} 5...
Nf6 {[%clk 0:02:56.1]} 6. e4 {[%clk 0:03:02.7]} 6... g6 {[%clk 0:02:57.4]} 7.
Nc3 {[%clk 0:03:02.7]} 7... Bg7 {[%clk 0:02:58.1]} 8. Bg5 {[%clk 0:03:01.7]}
8... O-O {[%clk 0:02:59]} 9. Qd2 {[%clk 0:03:02.6]} 9... e6 {[%clk 0:02:55.2]}
10. dxe6 {[%clk 0:03:02.4]} 10... Bxe6 {[%clk 0:02:55.6]} 11. O-O-O {[%clk
0:03:02.6]} 11... h6 {[%clk 0:02:46.7]} 12. Bxh6 {[%clk 0:03:02]} 12... Nc6
{[%clk 0:02:42.7]} 13. Bxg7 {[%clk 0:03:02.3]} 13... Kxg7 {[%clk 0:02:44.1]} 14.
Kb1 {[%clk 0:03:00.8]} 14... Qa5 {[%clk 0:02:40.5]} 15. a3 {[%clk 0:03:00.9]}
15... Rad8 {[%clk 0:02:37.7]} 16. Qg5 {[%clk 0:02:45.6]} 16... b5 {[%clk
0:02:28.2]} 17. h4 {[%clk 0:02:40.6]} 17... b4 {[%clk 0:02:28.4]} 18. h5 {[%clk
0:02:40.9]} 18... bxc3 {[%clk 0:02:21]} 19. h6+ {[%clk 0:02:41]} 19... Kh7
{[%clk 0:02:19]} 20. Qxf6 {[%clk 0:02:41.8]} 20... Rg8 {[%clk 0:02:18.6]} 21.
Qxc3 {[%clk 0:01:58.6]} 21... Qb6 {[%clk 0:02:00.3]} 22. Bc4 {[%clk 0:01:56.9]}
22... Nd4 {[%clk 0:01:56.8]} 23. Bxe6 {[%clk 0:01:55.8]} 23... Nxe6 {[%clk
0:01:58.7]} 24. Nh3 {[%clk 0:01:50.5]} 24... Rd7 {[%clk 0:01:55.3]} 25. f4
{[%clk 0:01:50.8]} 25... Rb7 {[%clk 0:01:52.5]} 26. b3 {[%clk 0:01:44]} 26...
Nd4 {[%clk 0:01:52.1]} 27. Ng5+ {[%clk 0:01:43.7]} 27... Kh8 {[%clk 0:01:51.2]}
28. Rh3 {[%clk 0:01:41.4]} 28... Re8 {[%clk 0:01:30.4]} 29. Qc4 {[%clk
0:01:30.1]} 29... Qc7 {[%clk 0:01:26]} 30. Rxd4 {[%clk 0:01:27.7]} 30... d5
{[%clk 0:01:10.4]} 31. Rxd5 {[%clk 0:01:26.2]} 31... Qxf4 {[%clk 0:01:11.3]} 32.
Qc3+ {[%clk 0:01:26.9]} 32... f6 {[%clk 0:01:12.3]} 33. Rf3 {[%clk 0:01:27.1]}
1-0

[Event "*** Titled Tuesday 3|2 Blitz"]
[Site "Chess.com"]
[Date "2016.05.03"]
[Round "2"]
[White "Misha_Bilous"]
[Black "GulamaliRises"]
[Result "0-1"]
[WhiteElo "2230"]
[BlackElo "2584"]
[TimeControl "180+2"]
[EndTime "11:20:17 PDT"]
[Termination "GulamaliRises won by resignation"]

1. d4 {[%clk 0:03:01.9]} 1... Nf6 {[%clk 0:02:58.9]} 2. c4 {[%clk 0:03:02.7]}
2... e6 {[%clk 0:03:00]} 3. Nf3 {[%clk 0:03:03.3]} 3... c5 {[%clk 0:02:59.9]} 4.
d5 {[%clk 0:03:00.6]} 4... exd5 {[%clk 0:03:01.8]} 5. cxd5 {[%clk 0:03:01.7]}
5... d6 {[%clk 0:03:02.9]} 6. Nc3 {[%clk 0:03:03]} 6... g6 {[%clk 0:03:04.3]} 7.
g3 {[%clk 0:03:04.6]} 7... Bg7 {[%clk 0:03:05.6]} 8. Bg2 {[%clk 0:03:06.3]} 8...
O-O {[%clk 0:03:07]} 9. O-O {[%clk 0:03:07.9]} 9... a6 {[%clk 0:03:08.6]} 10. a4
{[%clk 0:03:07.6]} 10... Re8 {[%clk 0:03:10.2]} 11. Nd2 {[%clk 0:03:07.8]} 11...
Nbd7 {[%clk 0:03:11.3]} 12. h3 {[%clk 0:03:00.8]} 12... Rb8 {[%clk 0:03:12.1]}
13. Nc4 {[%clk 0:02:59.8]} 13... Ne5 {[%clk 0:03:13.2]} 14. Na3 {[%clk
0:03:00.6]} 14... Nh5 {[%clk 0:03:14.2]} 15. e4 {[%clk 0:02:59]} 15... f5 {[%clk
0:02:39.3]} 16. Qe2 {[%clk 0:02:11.7]} 16... Nf6 {[%clk 0:02:32]} 17. f4 {[%clk
0:01:39.1]} 17... Nf7 {[%clk 0:02:33]} 18. Nc4 {[%clk 0:01:37]} 18... Nxe4
{[%clk 0:02:27.4]} 19. Nxe4 {[%clk 0:01:34.9]} 19... fxe4 {[%clk 0:02:29.3]} 20.
g4 {[%clk 0:01:33.7]} 20... b5 {[%clk 0:02:15.7]} 21. axb5 {[%clk 0:01:33]}
21... axb5 {[%clk 0:02:17.6]} 22. Na5 {[%clk 0:01:31.1]} 22... Bd4+ {[%clk
0:02:13.9]} 23. Kh2 {[%clk 0:01:30]} 23... Bb7 {[%clk 0:02:12.9]} 24. Qxb5
{[%clk 0:00:26.6]} 24... Bxd5 {[%clk 0:02:11.8]} 25. Qe2 {[%clk 0:00:28.1]}
25... Qb6 {[%clk 0:01:52.3]} 26. Nc4 {[%clk 0:00:26.6]} 26... Qb5 {[%clk
0:01:53.5]} 27. Ra5 {[%clk 0:00:03.6]} 27... Qxc4 {[%clk 0:01:54.2]} 28. Qe1
{[%clk 0:00:05.2]} 28... e3 {[%clk 0:01:52.6]} 29. Ra7 {[%clk 0:00:04.7]} 29...
Qc2 {[%clk 0:01:51.7]} 30. Rg1 {[%clk 0:00:04.8]} 30... c4 {[%clk 0:01:51]} 31.
Qh4 {[%clk 0:00:04.7]} 31... Bxa7 {[%clk 0:01:50.6]} 0-1

[Event "*** Titled Tuesday 3|2 Blitz"]
[Site "Chess.com"]
[Date "2016.05.03"]
[Round "2"]
[White "PowerThinking2650"]
[Black "Grootneus"]
[Result "1-0"]
[WhiteElo "2152"]
[BlackElo "2037"]
[TimeControl "180+2"]
[EndTime "11:20:27 PDT"]
[Termination "PowerThinking2650 won by resignation"]

1. e4 {[%clk 0:03:01.9]} 1... c5 {[%clk 0:03:00.8]} 2. Nf3 {[%clk 0:03:02.2]}
2... Nc6 {[%clk 0:03:02.4]} 3. d4 {[%clk 0:03:03.4]} 3... cxd4 {[%clk
0:03:04.3]} 4. Nxd4 {[%clk 0:03:04.7]} 4... Nf6 {[%clk 0:03:06]} 5. Nc3 {[%clk
0:03:04.1]} 5... e5 {[%clk 0:03:07.7]} 6. Ndb5 {[%clk 0:03:04.7]} 6... d6 {[%clk
0:03:09.1]} 7. Bg5 {[%clk 0:03:05.2]} 7... a6 {[%clk 0:03:10.4]} 8. Na3 {[%clk
0:03:05.6]} 8... b5 {[%clk 0:03:11.6]} 9. Nd5 {[%clk 0:03:06.5]} 9... Be7 {[%clk
0:03:12.9]} 10. Bxf6 {[%clk 0:03:07.6]} 10... Bxf6 {[%clk 0:03:14.8]} 11. c3
{[%clk 0:03:08.8]} 11... Bg5 {[%clk 0:03:15]} 12. Nc2 {[%clk 0:03:06.2]} 12...
Rb8 {[%clk 0:03:16.6]} 13. Be2 {[%clk 0:02:54.2]} 13... O-O {[%clk 0:03:15.7]}
14. O-O {[%clk 0:02:54.5]} 14... a5 {[%clk 0:03:14]} 15. b4 {[%clk 0:02:54.9]}
15... axb4 {[%clk 0:03:11.7]} 16. cxb4 {[%clk 0:02:55.8]} 16... Be6 {[%clk
0:03:11.7]} 17. a4 {[%clk 0:02:55.4]} 17... bxa4 {[%clk 0:03:10.3]} 18. b5
{[%clk 0:02:56.5]} 18... Bxd5 {[%clk 0:02:55.3]} 19. exd5 {[%clk 0:02:54.7]}
19... Ne7 {[%clk 0:02:51.2]} 20. Nb4 {[%clk 0:02:53.8]} 20... Qb6 {[%clk
0:02:42.9]} 21. Nc6 {[%clk 0:02:46.8]} 21... Nxc6 {[%clk 0:02:38.8]} 22. dxc6
{[%clk 0:02:46]} 22... Rfd8 {[%clk 0:02:29.9]} 23. Qxa4 {[%clk 0:02:39.3]} 23...
d5 {[%clk 0:02:29.4]} 24. Qa7 {[%clk 0:02:34.4]} 24... Rdc8 {[%clk 0:02:02.6]}
25. Qxb6 {[%clk 0:02:29.8]} 25... Rxb6 {[%clk 0:02:04.5]} 26. Bg4 {[%clk
0:02:29.2]} 26... f5 {[%clk 0:01:40.2]} 27. Bxf5 {[%clk 0:02:29.3]} 27... Rc7
{[%clk 0:01:41.5]} 28. Rfb1 {[%clk 0:02:14.7]} 28... d4 {[%clk 0:01:34.3]} 29.
Be4 {[%clk 0:02:11.3]} 29... Kf7 {[%clk 0:01:28]} 30. Ra6 {[%clk 0:02:08.9]}
30... Rb8 {[%clk 0:01:12]} 31. b6 {[%clk 0:02:07.8]} 31... d3 {[%clk 0:01:13.2]}
32. Rd1 {[%clk 0:01:54.4]} 32... Re7 {[%clk 0:01:00.4]} 33. c7 {[%clk
0:01:53.9]} 33... Rbe8 {[%clk 0:00:58.1]} 34. Bd5+ {[%clk 0:01:52.1]} 34... Kg6
{[%clk 0:00:58.3]} 35. b7+ {[%clk 0:01:52.2]} 35... Kf5 {[%clk 0:00:59.6]} 36.
Ra8 {[%clk 0:01:48.7]} 36... Rxc7 {[%clk 0:00:37.5]} 37. Rxe8 {[%clk 0:01:47.7]}
37... d2 {[%clk 0:00:36.7]} 1-0

[Event "*** Titled Tuesday 3|2 Blitz"]
[Site "Chess.com"]
[Date "2016.05.03"]
[Round "2"]
[White "KyronGriffith"]
[Black "vinceyoung15"]
[Result "1-0"]
[WhiteElo "2317"]
[BlackElo "2142"]
[TimeControl "180+2"]
[EndTime "11:21:00 PDT"]
[Termination "KyronGriffith won by resignation"]

1. Nf3 {[%clk 0:03:01.9]} 1... d5 {[%clk 0:02:58.5]} 2. c4 {[%clk 0:03:02.4]}
2... e6 {[%clk 0:02:59.2]} 3. g3 {[%clk 0:03:03.4]} 3... Nf6 {[%clk 0:02:59.1]}
4. d4 {[%clk 0:03:04]} 4... Be7 {[%clk 0:03:00.2]} 5. Bg2 {[%clk 0:03:05]} 5...
O-O {[%clk 0:03:01.5]} 6. O-O {[%clk 0:03:06.1]} 6... c6 {[%clk 0:03:02.9]} 7.
Qc2 {[%clk 0:03:05.2]} 7... Nbd7 {[%clk 0:03:03.1]} 8. Rd1 {[%clk 0:03:06.1]}
8... b6 {[%clk 0:03:01.3]} 9. Nbd2 {[%clk 0:03:07.1]} 9... Bb7 {[%clk
0:02:59.5]} 10. b3 {[%clk 0:03:07]} 10... Rc8 {[%clk 0:02:58.7]} 11. Bb2 {[%clk
0:03:05.7]} 11... c5 {[%clk 0:02:58.8]} 12. Rac1 {[%clk 0:02:48.9]} 12... Qc7
{[%clk 0:02:47.4]} 13. cxd5 {[%clk 0:02:45.9]} 13... Nxd5 {[%clk 0:02:34.9]} 14.
e4 {[%clk 0:02:39.1]} 14... Nb4 {[%clk 0:02:34.6]} 15. Qb1 {[%clk 0:02:39.5]}
15... Qb8 {[%clk 0:02:33.7]} 16. a3 {[%clk 0:02:32]} 16... Na6 {[%clk
0:02:27.6]} 17. Nc4 {[%clk 0:02:20.7]} 17... Qa8 {[%clk 0:02:14.7]} 18. d5
{[%clk 0:01:20.8]} 18... exd5 {[%clk 0:02:13]} 19. exd5 {[%clk 0:01:22.7]} 19...
Bxd5 {[%clk 0:02:10.2]} 20. Rxd5 {[%clk 0:01:24.3]} 20... Qxd5 {[%clk
0:02:11.2]} 21. Rd1 {[%clk 0:01:26]} 21... Qe6 {[%clk 0:01:59.1]} 22. Re1 {[%clk
0:01:23]} 22... Qg6 {[%clk 0:01:34.7]} 23. Qxg6 {[%clk 0:01:23.9]} 23... hxg6
{[%clk 0:01:36.3]} 24. Rxe7 {[%clk 0:01:25.4]} 24... Rfd8 {[%clk 0:01:23.8]} 25.
Bh3 {[%clk 0:01:25.9]} 25... Nab8 {[%clk 0:01:12.5]} 26. Nd6 {[%clk 0:01:25.7]}
26... Rc6 {[%clk 0:01:06.7]} 27. Nxf7 {[%clk 0:01:20.8]} 27... Rf8 {[%clk
0:00:52]} 28. N3e5 {[%clk 0:00:52.7]} 28... Nxe5 {[%clk 0:00:45.5]} 29. Nxe5
{[%clk 0:00:54.6]} 29... Rcf6 {[%clk 0:00:37.2]} 30. f4 {[%clk 0:00:52.7]} 30...
Rd6 {[%clk 0:00:25.9]} 31. Nc4 {[%clk 0:00:49.1]} 31... Rd1+ {[%clk 0:00:23]}
32. Kf2 {[%clk 0:00:50.7]} 32... Rf7 {[%clk 0:00:24.4]} 33. Be6 {[%clk
0:00:51.1]} 1-0

[Event "*** Titled Tuesday 3|2 Blitz"]
[Site "Chess.com"]
[Date "2016.05.03"]
[Round "2"]
[White "Rikikits"]
[Black "LyonBeast"]
[Result "0-1"]
[WhiteElo "2506"]
[BlackElo "2770"]
[TimeControl "180+2"]
[EndTime "11:21:06 PDT"]
[Termination "LyonBeast won by resignation"]

1. e4 {[%clk 0:03:01.9]} 1... c5 {[%clk 0:03:00.2]} 2. Nf3 {[%clk 0:03:01.4]}
2... d6 {[%clk 0:02:59.8]} 3. d4 {[%clk 0:03:02.2]} 3... cxd4 {[%clk 0:02:56.5]}
4. Nxd4 {[%clk 0:03:04.1]} 4... Nf6 {[%clk 0:02:57.6]} 5. Nc3 {[%clk 0:03:05.4]}
5... a6 {[%clk 0:02:58.5]} 6. h3 {[%clk 0:03:06]} 6... e6 {[%clk 0:02:56.8]} 7.
g4 {[%clk 0:03:06.7]} 7... h6 {[%clk 0:02:58.3]} 8. Be3 {[%clk 0:03:05.4]} 8...
Nc6 {[%clk 0:02:55.1]} 9. Qf3 {[%clk 0:03:04.9]} 9... Ne5 {[%clk 0:02:46.8]} 10.
Qg3 {[%clk 0:03:04.4]} 10... b5 {[%clk 0:02:26.6]} 11. f4 {[%clk 0:01:51.3]}
11... b4 {[%clk 0:02:27.5]} 12. fxe5 {[%clk 0:01:48.1]} 12... dxe5 {[%clk
0:02:22.6]} 13. O-O-O {[%clk 0:01:18.7]} 13... exd4 {[%clk 0:01:51.5]} 14. Bxd4
{[%clk 0:01:09.6]} 14... bxc3 {[%clk 0:01:42.5]} 15. Bxc3 {[%clk 0:01:11.5]}
15... Bd7 {[%clk 0:01:35.3]} 16. Bg2 {[%clk 0:01:07]} 16... Rc8 {[%clk
0:01:33.5]} 17. e5 {[%clk 0:01:07.1]} 17... Nd5 {[%clk 0:01:30.7]} 18. Bxd5
{[%clk 0:01:07.3]} 18... exd5 {[%clk 0:01:30.5]} 19. Rxd5 {[%clk 0:01:09.2]}
19... Qc7 {[%clk 0:01:24.6]} 20. Rhd1 {[%clk 0:00:40.5]} 20... Be6 {[%clk
0:01:21.8]} 21. Rd6 {[%clk 0:00:37.9]} 21... Be7 {[%clk 0:00:41.2]} 22. h4
{[%clk 0:00:33.9]} 22... Qc4 {[%clk 0:00:32.4]} 23. g5 {[%clk 0:00:31]} 23...
hxg5 {[%clk 0:00:32.7]} 24. hxg5 {[%clk 0:00:31.9]} 24... Rh3 {[%clk 0:00:31]}
25. Qg2 {[%clk 0:00:22.9]} 25... Rxc3 {[%clk 0:00:30.2]} 26. bxc3 {[%clk
0:00:24.8]} 26... Qxc3 {[%clk 0:00:29.9]} 27. R6d3 {[%clk 0:00:18.4]} 0-1